fUST/lending_fUST_20240925
["ID","MTS","AMOUNT","RATE_DAILY","PERIOD"]
[339079980,1727212244778,-500.0,0.00025,30]
[339079981,1727212244787,-500.0,0.00025,30]
[339079982,1727212244797,-500.0,0.00025,30]
[339079983,1727212244806,-500.0,0.00025,30]
[339079984,1727212244816,-500.0,0.00025,30]
[339079985,1727212244826,-500.0,0.00025,30]
[339079986,1727212244836,-500.0,0.00025,30]
[339079987,1727212244845,-500.0,0.00025,30]
[339079988,1727212244854,-630.0,0.00025,2]
[339079989,1727212244864,-500.0,0.00025,30]
[339079990,1727212244873,-500.0,0.00025,30]
[339079991,1727212244882,-500.0,0.00025,30]
[339079992,1727212244892,-500.0,0.00025,30]
[339079993,1727212244902,-500.0,0.00025,30]
[339079994,1727212244910,-500.0,0.00025,30]
[339079995,1727212244920,-500.0,0.00025,30]
[339079996,1727212244930,-589.07162165,0.00025,30]
[339079997,1727212244939,-500.0,0.00025,30]
[339079998,1727212244948,-500.0,0.00025,30]
[339079999,1727212244957,-500.0,0.00025,30]
[339080000,1727212244967,-500.0,0.00025,30]
[339080001,1727212244976,-500.0,0.00025,30]
[339080002,1727212244985,-500.0,0.00025,30]
[339080003,1727212245085,-500.0,0.00025,30]
[339080004,1727212245094,-500.0,0.00025,30]
[339080005,1727212245103,-500.0,0.00025,30]
[339080006,1727212245113,-226.0,0.00025,2]
[339080007,1727212245122,-555.0,0.00025,2]
[339080008,1727212245131,-200.0,0.00025,2]
[339080009,1727212245140,-500.0,0.00025,30]
[339080010,1727212245150,-500.0,0.00025,30]
[339080011,1727212245159,-500.0,0.00025,30]
[339080012,1727212245168,-500.0,0.00025,30]
[339080013,1727212245177,-4281.59802315,0.0002507,3]
[339080014,1727212245186,-355.23846113,0.00025073,2]
[339080015,1727212245195,-2473.760307,0.0002508,7]
[339080016,1727212245205,-2473.760307,0.0002508,7]
[339080017,1727212245214,-178.510138,0.0002508,7]
[339080018,1727212245223,-178.510138,0.0002508,7]
[339080019,1727212245233,-434.172304,0.0002508,7]
[339080020,1727212245245,-208.54867,0.0002508,7]
[339080021,1727212245255,-434.172304,0.0002508,7]
[339080022,1727212245265,-151.0,0.0002508,7]
[339080023,1727212245274,-208.54867,0.0002508,7]
[339080024,1727212245283,-151.0,0.0002508,7]
[339080025,1727212245294,-805.28468,0.0002508,7]
[339080026,1727212245303,-805.28468,0.0002508,7]
[339080027,1727212245313,-151.0,0.0002508,7]
[339080028,1727212245323,-282.127414,0.0002508,7]
[339080029,1727212245333,-282.127414,0.0002508,7]
[339080030,1727212245342,-2718.426828,0.0002508,7]
[339080031,1727212245351,-2718.426828,0.0002508,7]
[339080032,1727212245360,-334.295538,0.0002508,7]
[339080033,1727212245369,-334.295538,0.0002508,7]
[339080034,1727212245378,-237.937957,0.0002508,7]
[339080035,1727212245387,-237.937957,0.0002508,7]
[339080036,1727212245396,-151.0,0.0002508,7]
[339080037,1727212245406,-151.0,0.0002508,7]
[339080038,1727212245415,-604.621979,0.0002508,7]
[339080039,1727212245424,-604.621979,0.0002508,7]
[339080040,1727212245433,-604.621979,0.0002508,7]
[339080041,1727212245443,-604.621979,0.0002508,7]
[339080042,1727212245453,-1574.912377,0.0002508,7]
[339080043,1727212245465,-1574.912377,0.0002508,7]
[339080044,1727212245474,-770.536863,0.0002508,7]
[339080045,1727212245483,-770.536863,0.0002508,7]
[339080046,1727212245493,-770.536863,0.0002508,7]
[339080047,1727212245502,-770.536863,0.0002508,7]
[339080048,1727212245511,-1454.540924,0.0002508,7]
[339080049,1727212245520,-1454.540924,0.0002508,7]
[339080050,1727212245530,-1454.540924,0.0002508,7]
[339080051,1727212245539,-1454.540924,0.0002508,7]
[339080052,1727212245548,-151.0,0.0002508,7]
[339080053,1727212245558,-151.0,0.0002508,7]
[339080054,1727212245567,-834.718256,0.0002508,7]
[339080055,1727212245576,-834.718256,0.0002508,7]
[339080056,1727212245587,-821.399408,0.0002508,7]
[339080057,1727212245596,-821.399408,0.0002508,7]
[339080058,1727212245606,-821.399408,0.0002508,7]
[339080059,1727212245616,-821.399408,0.0002508,7]
[339080060,1727212245625,-226.5,0.0002508,7]
[339080061,1727212245634,-226.5,0.0002508,7]
[339080062,1727212245644,-226.5,0.0002508,7]
[339080063,1727212245653,-226.5,0.0002508,7]
[339080064,1727212245662,-7205.82404432,0.0002508,3]
[339080088,1727213346116,-167.112026,0.00019178,2]
[339080089,1727213346138,-218.813847,0.00019803,2]
[339080090,1727213346160,-218.813847,0.00019857,2]
[339080091,1727213346181,-218.813847,0.00019912,2]
[339080092,1727213346202,-218.813847,0.00019966,2]
[339080093,1727213346224,-218.813847,0.0002002,2]
[339080094,1727213346244,-310.20639652,0.00020047,2]
[339080095,1727213346266,-218.813847,0.00020075,2]
[339080096,1727213346287,-218.813847,0.00020129,2]
[339080097,1727213346307,-254.89585429,0.00020147,2]
[339080098,1727213346327,-218.813847,0.00020183,2]
[339080099,1727213346348,-218.813847,0.00020237,2]
[339080100,1727213346369,-160.113729,0.00020248,2]
[339080101,1727213346390,-218.813847,0.00020292,2]
[339080102,1727213346412,-218.813847,0.00020346,2]
[339080103,1727213346434,-218.813847,0.000204,2]
[339080104,1727213346468,-384.91594249,0.00020423,2]
[339080105,1727213346498,-300.0,0.00020423,2]
[339080106,1727213346524,-300.0,0.00020423,2]
[339080107,1727213346548,-194.9910137,0.00020424,2]
[339080199,1727213437866,-300.0,0.00019922,2]
[339080200,1727213437877,-300.0,0.00019922,2]
[339080201,1727213437897,-610.00000001,0.00019923,2]
[339080202,1727213437976,-1160.44014622,0.00019923,2]
[339080210,1727213439815,-23129.55985377,0.00019923,2]
[339080211,1727213439826,-218.813847,0.00020455,2]
[339080212,1727213439838,-218.813847,0.00020509,2]
[339080213,1727213439850,-3030.30121274,0.00020518,2]
[339080214,1727213439862,-218.813847,0.00020563,2]
[339080215,1727213439873,-218.813847,0.00020618,2]
[339080216,1727213439882,-218.813847,0.00020672,2]
[339080217,1727213439894,-101.57238121,0.00020726,2]
[339080218,1727213439913,-117.24146579,0.00020726,2]
[339080219,1727213439923,-218.813847,0.0002078,2]
[339080220,1727213439933,-218.813847,0.00020835,2]
[339080221,1727213439943,-2732.45383361,0.00020876,2]
[339080222,1727213439952,-500.0,0.00021,30]
[339080223,1727213439963,-500.0,0.00021,30]
[339080224,1727213439972,-500.0,0.00021,30]
[339080225,1727213439981,-866.02053318,0.00021,30]
[339080226,1727213439991,-945.32536578,0.00021,30]
[339080227,1727213440001,-500.0,0.00021,30]
[339080228,1727213440011,-500.0,0.00021,30]
[339080229,1727213440020,-500.0,0.00021,30]
[339080230,1727213440030,-607.7783795,0.00021,30]
[339080231,1727213440040,-500.0,0.00021,30]
[339080232,1727213440050,-767.1185168,0.00021,30]
[339080233,1727213440060,-420.0,0.00021695,2]
[339080234,1727213440069,-420.0,0.00021914,2]
[339080235,1727213440079,-166.666666,0.00021918,2]
[339080236,1727213440088,-153.0,0.00022061,2]
[339080237,1727213440098,-153.0,0.00022061,2]
[339080238,1727213440108,-153.0,0.00022061,2]
[339080239,1727213440117,-153.0,0.00022061,2]
[339080240,1727213440127,-153.0,0.00022061,2]
[339080241,1727213440136,-153.0,0.00022061,2]
[339080242,1727213440145,-153.0,0.00022061,2]
[339080243,1727213440155,-153.0,0.00022061,2]
[339080244,1727213440164,-274.0,0.00022061,2]
[339080245,1727213440173,-274.0,0.00022061,2]
[339080246,1727213440183,-274.0,0.00022061,2]
[339080247,1727213440193,-274.0,0.00022061,2]
[339080248,1727213440203,-274.0,0.00022061,2]
[339080249,1727213440212,-274.0,0.00022061,2]
[339080250,1727213440222,-274.0,0.00022061,2]
[339080251,1727213440231,-274.0,0.00022061,2]
[339080252,1727213440245,-274.0,0.00022061,2]
[339080253,1727213440255,-274.0,0.00022061,2]
[339080254,1727213440264,-274.0,0.00022061,2]
[339080255,1727213440273,-274.0,0.00022061,2]
[339080256,1727213440283,-274.0,0.00022061,2]
[339080257,1727213440292,-274.0,0.00022061,2]
[339080258,1727213440302,-274.0,0.00022061,2]
[339080259,1727213440311,-274.0,0.00022061,2]
[339080260,1727213440320,-274.0,0.00022061,2]
[339080262,1727213440330,-153.0,0.00022061,2]
[339080263,1727213440340,-153.0,0.00022061,2]
[339080264,1727213440350,-153.0,0.00022061,2]
[339080266,1727213440361,-274.0,0.00022061,2]
[339080267,1727213440370,-274.0,0.00022061,2]
[339080268,1727213440379,-274.0,0.00022061,2]
[339080270,1727213440389,-274.0,0.00022061,2]
[339080271,1727213440398,-274.0,0.00022061,2]
[339080272,1727213440407,-274.0,0.00022061,2]
[339080274,1727213440417,-274.0,0.00022061,2]
[339080275,1727213440426,-274.0,0.00022061,2]
[339080276,1727213440437,-274.0,0.00022061,2]
[339080277,1727213440446,-274.0,0.00022061,2]
[339080279,1727213440455,-274.0,0.00022061,2]
[339080280,1727213440465,-274.0,0.00022061,2]
[339080281,1727213440475,-274.0,0.00022061,2]
[339080282,1727213440485,-274.0,0.00022061,2]
[339080283,1727213440496,-153.0,0.00022061,2]
[339080284,1727213440506,-153.0,0.00022061,2]
[339080286,1727213440516,-153.0,0.00022061,2]
[339080287,1727213440526,-274.0,0.00022061,2]
[339080288,1727213440536,-274.0,0.00022061,2]
[339080289,1727213440546,-274.0,0.00022061,2]
[339080290,1727213440557,-274.0,0.00022061,2]
[339080292,1727213440567,-274.0,0.00022061,2]
[339080293,1727213440577,-274.0,0.00022061,2]
[339080294,1727213440587,-274.0,0.00022061,2]
[339080296,1727213440596,-274.0,0.00022061,2]
[339080297,1727213440606,-274.0,0.00022061,2]
[339080298,1727213440616,-274.0,0.00022061,2]
[339080299,1727213440625,-274.0,0.00022061,2]
[339080300,1727213440635,-274.0,0.00022061,2]
[339080301,1727213440644,-274.0,0.00022061,2]
[339080302,1727213440654,-274.0,0.00022061,2]
[339080303,1727213440664,-153.0,0.00022061,2]
[339080305,1727213440673,-153.0,0.00022061,2]
[339080306,1727213440684,-153.0,0.00022061,2]
[339080307,1727213440693,-274.0,0.00022061,2]
[339080308,1727213440703,-274.0,0.00022061,2]
[339080309,1727213440712,-274.0,0.00022061,2]
[339080310,1727213440722,-274.0,0.00022061,2]
[339080311,1727213440731,-274.0,0.00022061,2]
[339080312,1727213440740,-274.0,0.00022061,2]
[339080313,1727213440750,-274.0,0.00022061,2]
[339080314,1727213440760,-274.0,0.00022061,2]
[339080315,1727213440769,-274.0,0.00022061,2]
[339080316,1727213440779,-274.0,0.00022061,2]
[339080317,1727213440788,-274.0,0.00022061,2]
[339080318,1727213440798,-274.0,0.00022061,2]
[339080319,1727213440808,-274.0,0.00022061,2]
[339080320,1727213440818,-274.0,0.00022061,2]
[339080321,1727213440827,-153.0,0.00022061,2]
[339080322,1727213440836,-274.0,0.00022061,2]
[339080323,1727213440845,-274.0,0.00022061,2]
[339080324,1727213440859,-274.0,0.00022061,2]
[339080325,1727213440868,-274.0,0.00022061,2]
[339080326,1727213440878,-274.0,0.00022061,2]
[339080327,1727213440890,-274.0,0.00022061,2]
[339080328,1727213440899,-274.0,0.00022061,2]
[339080329,1727213440908,-274.0,0.00022061,2]
[339080330,1727213440918,-274.0,0.00022061,2]
[339080331,1727213440927,-274.0,0.00022061,2]
[339080332,1727213440937,-274.0,0.00022061,2]
[339080333,1727213440946,-274.0,0.00022061,2]
[339080334,1727213440955,-274.0,0.00022061,2]
[339080335,1727213440966,-274.0,0.00022061,2]
[339080336,1727213440976,-274.0,0.00022061,2]
[339080337,1727213440987,-274.0,0.00022061,2]
[339080338,1727213440997,-274.0,0.00022061,2]
[339080339,1727213441007,-274.0,0.00022061,2]
[339080340,1727213441017,-274.0,0.00022061,2]
[339080341,1727213441027,-274.0,0.00022061,2]
[339080342,1727213441037,-274.0,0.00022061,2]
[339080343,1727213441047,-274.0,0.00022061,2]
[339080344,1727213441057,-274.0,0.00022061,2]
[339080345,1727213441068,-274.0,0.00022061,2]
[339080346,1727213441078,-274.0,0.00022061,2]
[339080347,1727213441088,-274.0,0.00022061,2]
[339080348,1727213441097,-274.0,0.00022061,2]
[339080349,1727213441106,-274.0,0.00022061,2]
[339080350,1727213441116,-274.0,0.00022061,2]
[339080351,1727213441126,-274.0,0.00022061,2]
[339080352,1727213441135,-274.0,0.00022061,2]
[339080353,1727213441145,-274.0,0.00022061,2]
[339080354,1727213441154,-274.0,0.00022061,2]
[339080355,1727213441163,-274.0,0.00022061,2]
[339080356,1727213441173,-274.0,0.00022061,2]
[339080357,1727213441183,-274.0,0.00022061,2]
[339080358,1727213441194,-274.0,0.00022061,2]
[339080359,1727213441205,-274.0,0.00022061,2]
[339080360,1727213441217,-166.666666,0.00022431,2]
[339080361,1727213441228,-3030.30121271,0.00022607,2]
[339080362,1727213441239,-193.6,0.00022941,2]
[339080363,1727213441250,-166.666666,0.00022944,2]
[339080364,1727213441260,-752.93101255,0.00022962,2]
[339080365,1727213441269,-242.684863,0.00023,2]
[339080366,1727213441279,-200.0,0.00023,2]
[339080367,1727213441290,-302.45563732,0.00023,2]
[339080368,1727213441299,-1000.0,0.00023178,2]
[339080369,1727213441310,-222.24466228,0.00023188,2]
[339080370,1727213441321,-302.45563732,0.0002323,2]
[339080371,1727213441331,-274.47527487,0.00023267,2]
[339080372,1727213441342,-500.0,0.00023267,2]
[339080373,1727213441352,-280.93488488,0.00023267,2]
[339080374,1727213441363,-500.0,0.00023267,2]
[339080375,1727213441373,-159.77592277,0.00023267,2]
[339080376,1727213441383,-500.0,0.00023267,2]
[339080377,1727213441392,-305.80331296,0.00023267,2]
[339080378,1727213441402,-214.54634929,0.00023267,2]
[339080379,1727213441411,-500.0,0.00023267,2]
[339080380,1727213441422,-500.0,0.00023267,2]
[339080381,1727213441431,-500.0,0.00023267,2]
[339080382,1727213441441,-500.0,0.00023267,2]
[339080383,1727213441451,-500.0,0.00023267,2]
[339080384,1727213441461,-500.0,0.00023267,2]
[339080385,1727213441471,-500.0,0.00023267,2]
[339080386,1727213441481,-500.0,0.00023267,2]
[339080387,1727213441491,-500.0,0.00023267,2]
[339080388,1727213441501,-500.0,0.00023267,2]
[339080389,1727213441511,-500.0,0.00023267,2]
[339080390,1727213441521,-500.0,0.00023267,2]
[339080391,1727213441531,-450.0,0.00023267,2]
[339080392,1727213441541,-80266.262115,0.00023268,3]
[339080406,1727213442702,-5196.7780352,0.00023268,3]
[339080419,1727213445687,-822.11871918,0.00023268,3]
[339080420,1727213445799,-711.21448362,0.00023268,3]
[339080519,1727213959278,200.0,0.00025,120]
[339080533,1727214221512,4640.62223773,0.00015,5]
[339080534,1727214252045,155.0,0.000141,2]
[339080535,1727214256667,155.0,0.000141,2]
[339080536,1727214261189,155.0,0.000141,2]
[339080537,1727214265740,155.0,0.000141,2]
[339080538,1727214270612,155.0,0.000141,2]
[339080539,1727214275307,155.0,0.000141,2]
[339080540,1727214279756,155.0,0.000141,2]
[339080541,1727214284280,155.0,0.000141,2]
[339080542,1727214289151,155.0,0.000141,2]
[339080543,1727214293551,239.81576692,0.000141,2]
[339080545,1727214391142,-166.666666,0.0002222,2]
[339080546,1727214391163,-200.2647862,0.00022443,2]
[339080628,1727214632552,-160.113729,0.00021384,2]
[339080629,1727214632562,-166.666666,0.00021918,2]
[339080630,1727214632574,-166.666666,0.00022431,2]
[339080631,1727214632583,-300.0,0.00022536,2]
[339080632,1727214632593,-300.0,0.00022536,2]
[339080633,1727214632602,-24900.0,0.00022537,2]
[339080634,1727214632611,-2596.80050263,0.00022804,2]
[339080635,1727214632622,-633.0019523,0.00022904,2]
[339080636,1727214632631,-177.5,0.0002293,2]
[339080637,1727214632641,-166.666666,0.00022944,2]
[339080638,1727214632651,-6888.91794215,0.00022972,2]
[339080639,1727214632660,-153.0,0.000232,2]
[339080640,1727214632670,-500.0,0.00023288,2]
[339080641,1727214632680,-500.0,0.00023288,2]
[339080642,1727214632691,-500.0,0.00023288,2]
[339080643,1727214632702,-500.0,0.00023288,2]
[339080644,1727214632714,-254.04,0.0002337,2]
[339080645,1727214632725,-6888.91794215,0.00023409,2]
[339080646,1727214632736,-166.666666,0.00023456,2]
[339080647,1727214632746,-177.5,0.0002366,2]
[339080648,1727214632756,-2900.0,0.0002375,2]
[339080649,1727214632766,-153.0,0.00023751,2]
[339080650,1727214632778,-6888.91794217,0.00023767,2]
[339080651,1727214632790,-177.7957298,0.0002378,2]
[339080652,1727214632801,-500.0,0.00023869,2]
[339080653,1727214632812,-500.0,0.00023869,2]
[339080654,1727214632834,-342.13269241,0.00023869,2]
[339080655,1727214632844,-381.55382546,0.00023869,2]
[339080656,1727214632854,-196.65441941,0.00023869,2]
[339080657,1727214632863,-500.0,0.00023869,2]
[339080658,1727214632873,-500.0,0.00023869,2]
[339080659,1727214632883,-500.0,0.00023869,2]
[339080660,1727214632893,-500.0,0.00023869,2]
[339080661,1727214632903,-500.0,0.00023869,2]
[339080662,1727214632914,-465.1824445,0.00023869,2]
[339080663,1727214632924,-500.0,0.00023869,2]
[339080664,1727214632934,-500.0,0.00023869,2]
[339080665,1727214632945,-500.0,0.00023869,2]
[339080666,1727214632956,-350.0,0.00023869,2]
[339080667,1727214632966,-500.0,0.00023869,2]
[339080668,1727214632976,-500.0,0.00023869,2]
[339080669,1727214632987,-27623.51826568,0.0002387,3]
[339080670,1727214633001,-20085.17304861,0.0002387,3]
[339080682,1727214638116,-500.0,0.00023288,2]
[339080683,1727214638126,-500.0,0.00023288,2]
[339080684,1727214638135,-500.0,0.00023288,2]
[339080685,1727214638146,-500.0,0.00023288,2]
[339080686,1727214638157,-605.53821357,0.00023288,2]
[339080687,1727214638166,-500.0,0.00023288,2]
[339080688,1727214638176,-3169.51012662,0.0002387,3]
[339080696,1727214641003,-75848.66649581,0.0002379,3]
[339080706,1727214643434,-40.77016135,0.0002379,3]
[339080707,1727214643448,-933.4792192,0.0002379,3]
[339080758,1727214645936,-12065.08412364,0.0002379,3]
[339080759,1727214645945,-52418.30400209,0.0002387,3]
[339080760,1727214645955,-172.79265803,0.0002387,3]
[339080905,1727215838423,-166.666666,0.00021918,2]
[339080906,1727215838433,-4147.17759362,0.00022125,2]
[339080933,1727215843200,-10293.88926065,0.00022125,2]
[339080970,1727215846048,-9580.80058262,0.00022125,2]
[339080973,1727215846068,-878.13256311,0.00022125,2]
[339080975,1727215846077,-211.27924282,0.00022207,2]
[339080977,1727215846086,-203.593737,0.00022226,2]
[339080979,1727215846096,-166.666666,0.00022477,2]
[339080981,1727215846106,-300.0,0.00022491,2]
[339080983,1727215846115,-300.0,0.00022491,2]
[339080985,1727215846124,-168.14593,0.00022496,2]
[339080987,1727215846135,-166.666666,0.00023036,2]
[339080989,1727215846145,-1000.0,0.000233,2]
[339080991,1727215846154,-153.0,0.00023472,2]
[339080993,1727215846163,-151.0,0.00023499,2]
[339080995,1727215846173,-166.666666,0.00023595,2]
[339080997,1727215846182,-302.45563732,0.00023632,2]
[339080999,1727215846192,-168.14593,0.00023669,2]
[339081001,1727215846201,-3926.66049052,0.0002375,2]
[339081003,1727215846210,-177.79572979,0.00023761,2]
[339081005,1727215846221,-617.08767782,0.00023769,2]
[339081007,1727215846230,-239.49288469,0.00023769,2]
[339081009,1727215846240,-500.0,0.00023769,2]
[339081011,1727215846250,-500.0,0.00023769,2]
[339081014,1727215846259,-500.0,0.00023769,2]
[339081016,1727215846269,-500.0,0.00023769,2]
[339081018,1727215846278,-550.62771115,0.00023769,2]
[339081020,1727215846287,-500.0,0.00023769,2]
[339081022,1727215846297,-500.0,0.00023769,2]
[339081023,1727215846306,-500.0,0.00023769,2]
[339081025,1727215846315,-485.43939781,0.00023769,2]
[339081027,1727215846325,-500.0,0.00023769,2]
[339081029,1727215846335,-567.28202373,0.00023769,2]
[339081031,1727215846344,-500.0,0.00023769,2]
[339081034,1727215846354,-500.0,0.00023769,2]
[339081036,1727215846363,-500.0,0.00023769,2]
[339081038,1727215846372,-500.0,0.00023769,2]
[339081040,1727215846381,-500.0,0.00023769,2]
[339081041,1727215846391,-500.0,0.00023769,2]
[339081043,1727215846401,-500.0,0.00023769,2]
[339081045,1727215846411,-299.36725498,0.00023769,2]
[339081048,1727215846420,-500.0,0.00023769,2]
[339081049,1727215846430,-500.0,0.00023769,2]
[339081051,1727215846440,-500.0,0.00023769,2]
[339081053,1727215846449,-500.0,0.00023769,2]
[339081055,1727215846459,-500.0,0.00023769,2]
[339081057,1727215846469,-264.46614764,0.00023769,2]
[339081059,1727215846478,-500.0,0.00023769,2]
[339081061,1727215846488,-394.55473335,0.00023769,2]
[339081063,1727215846497,-500.0,0.00023769,2]
[339081065,1727215846506,-500.0,0.00023769,2]
[339081067,1727215846516,-4067.2999018,0.0002377,3]
[339081069,1727215846525,-99421.89188688,0.0002377,3]
[339081141,1727216710381,-160.714285,0.0002121,2]
[339081142,1727216710405,-160.714285,0.00021295,2]
[339081143,1727216710428,-160.714285,0.0002138,2]
[339081144,1727216710450,-500.0,0.00021429,2]
[339081145,1727216710470,-160.113729,0.0002143,2]
[339081146,1727216710491,-1900.9847661,0.00021435,2]
[339081147,1727216710514,-160.714285,0.00021465,2]
[339081148,1727216710537,-160.714285,0.0002155,2]
[339081149,1727216710559,-160.714285,0.00021635,2]
[339081150,1727216710581,-160.714285,0.0002172,2]
[339081151,1727216710603,-160.714285,0.00021806,2]
[339081152,1727216710626,-160.714285,0.00021891,2]
[339081153,1727216710648,-1000.0,0.0002195,2]
[339081154,1727216710669,-166.666666,0.00021951,2]
[339081155,1727216710692,-160.714285,0.00021976,2]
[339081156,1727216710712,-1000.0,0.00022,2]
[339081157,1727216710735,-160.714285,0.00022061,2]
[339081158,1727216710757,-160.714285,0.00022146,2]
[339081159,1727216710779,-160.714285,0.00022231,2]
[339081160,1727216710800,-1000.0,0.00022297,2]
[339081161,1727216710822,-300.0,0.00022297,2]
[339081162,1727216710844,-300.0,0.00022297,2]
[339081163,1727216710865,-12582.9491339,0.00022298,2]
[339081878,1727217028847,31784.0,0.00025,120]
[339081920,1727217032273,-203.593738,0.00022151,2]
[339081922,1727217032283,-1000.0,0.00022297,2]
[339081924,1727217032292,-172.75377571,0.00022297,2]
[339081946,1727217032501,-127.24622429,0.00022297,2]
[339081948,1727217032510,-300.0,0.00022297,2]
[339081950,1727217032520,-1473.73854181,0.00022298,2]
[339081988,1727217038500,-10843.31232429,0.00022298,2]
[339081989,1727217038509,-150.0,0.000223,3]
[339081990,1727217038518,-1000.0,0.00022315,2]
[339081991,1727217038528,-160.714285,0.00022316,2]
[339081992,1727217038537,-1000.0,0.00022333,2]
[339081993,1727217038547,-166.2504622,0.00022333,2]
[339081994,1727217038558,-166.666666,0.0002255,2]
[339081995,1727217038568,-1343.50563274,0.00022727,2]
[339081996,1727217038577,-150.1,0.00022727,2]
[339081997,1727217038586,-1000.0,0.00022846,2]
[339081998,1727217038595,-620.65009762,0.00022847,2]
[339081999,1727217038605,-492.34803433,0.00023,7]
[339082000,1727217038624,-7.65264399,0.00023,7]
[339082001,1727217038634,-1000.0,0.00023,7]
[339082002,1727217038643,-2200.98246536,0.00023,2]
[339082003,1727217038655,-1307.24981985,0.00023,2]
[339082004,1727217038668,-1491.76771479,0.00023,2]
[339082005,1727217038678,-3438.58469242,0.00023048,2]
[339082006,1727217038687,-500.0,0.00023135,2]
[339082007,1727217038695,-255.48525055,0.00023135,2]
[339082008,1727217038705,-166.666666,0.00023148,2]
[339082009,1727217038714,-6888.91794216,0.00023268,2]
[339082010,1727217038723,-6888.91794216,0.00023389,2]
[339082011,1727217038732,-150.1,0.00023475,2]
[339082012,1727217038741,-153.0,0.00023589,2]
[339082013,1727217038750,-153.0,0.00023589,2]
[339082014,1727217038759,-153.0,0.00023589,2]
[339082015,1727217038769,-153.0,0.00023589,2]
[339082016,1727217038779,-153.0,0.00023589,2]
[339082017,1727217038788,-177.7957298,0.000236,2]
[339082018,1727217038797,-177.79572979,0.00023627,2]
[339082019,1727217038806,-167.0,0.0002363,9]
[339082020,1727217038816,-617.08767782,0.00023639,2]
[339082021,1727217038825,-270.284827,0.00023639,2]
[339082022,1727217038837,-500.0,0.00023639,2]
[339082023,1727217038848,-500.0,0.00023639,2]
[339082024,1727217038859,-500.0,0.00023639,2]
[339082025,1727217038870,-500.0,0.00023639,2]
[339082026,1727217038879,-262.6811891,0.00023639,2]
[339082056,1727217040428,-237.3188109,0.00023639,2]
[339082057,1727217040439,-500.0,0.00023639,2]
[339082058,1727217040449,-515.99589181,0.00023639,2]
[339082059,1727217040460,-500.0,0.00023639,2]
[339082060,1727217040469,-600.0,0.00023639,2]
[339082061,1727217040479,-2129.11549461,0.0002364,3]
[339082062,1727217040489,-19612.99670499,0.0002364,3]
[339082129,1727217043429,-500.0,0.00023288,2]
[339082131,1727217043439,-500.0,0.00023288,2]
[339082133,1727217043448,-500.0,0.00023288,2]
[339082134,1727217043458,-300.0,0.00023288,2]
[339082135,1727217043467,-15292.94902038,0.0002364,3]
[339082170,1727217694971,500.0,0.00022646,120]
[339082171,1727217695220,500.0,0.0002292,120]
[339082172,1727217695882,500.0,0.00023193,120]
[339082173,1727217696191,500.0,0.00023467,120]
[339082174,1727217696545,500.0,0.00023741,120]
[339082175,1727217696867,500.0,0.00024015,120]
[339082176,1727217697194,500.0,0.00024289,120]
[339082177,1727217697673,500.0,0.00024563,120]
[339082178,1727217698286,186.36976766,0.00024837,120]
[339082191,1727217830895,5000.0,0.00015,5]